Cogmind - Beta 13 @@@ ROGUE MODE // 2024.04.01 @ 18:30:06 Player: SuperDrops Result: Destroyed by G-47 Trooper with Particle Gun Performance ------------- Evolutions (0) 0 Regions Visited (1) 200 Robots Destroyed (6) 30 Value Destroyed (230) 230 Prototype IDs (0) 0 Alien Tech Used (0) 0 Bonus (0) 0 TOTAL SCORE: 460 Bonus ------- None Cogmind --------- Core Integrity 0/250 Matter 205/300 Energy 95/100 System Corruption 0% Temperature Cool (15) Movement Core (150) Ox2 Location -10/Materials Parts ------- > --- POWER (1) -------- (None) > --- PROPULSION (2) --- (None) > --- UTILITY (2) ------ Small Storage Unit > --- WEAPON (2) ------- Hammer > --- INVENTORY (8) ---- Light Treads Aluminum Leg Aluminum Leg Wheel Compact Wheel Small Laser Light Assault Rifle Peak State ------------ > --- POWER ------------ Light Ion Engine > --- PROPULSION ------- Light Treads Light Treads > --- UTILITY ---------- Small Storage Unit > --- WEAPON ----------- Light Assault Rifle Light Assault Rifle > --- INVENTORY -------- Light Ion Engine Aluminum Leg Aluminum Leg Wheel Compact Wheel Small Laser [Rating: 6] Favorites ----------- Power Light Ion Engine Engine Light Ion Engine Propulsion Light Treads Treads Light Treads Utility Small Storage Unit Storage Small Storage Unit Weapon Light Assault Rifle Ballistic Gun Light Assault Rifle Impact Weapon Hammer Build | -11 -10 ------- Run | Yrd Mat Slots Evolved . | . . Power . | . . Propulsion . | . . Utility . | . . Weapon . | . . Parts Attached 8 | 6 2 Power 2 | 1 1 Engine 2 | 1 1 Core . | . . Reactor . | . . Propulsion 2 | 2 . Treads 2 | 2 . Leg . | . . Wheel . | . . Hover . | . . Flight . | . . Utility 1 | 1 . Device . | . . Storage 1 | 1 . Processor . | . . Hackware . | . . Protection . | . . Artifact . | . . Weapon 3 | 2 1 Energy Gun . | . . Energy Cannon . | . . Ballistic Gun 2 | 2 . Ballistic Cannon . | . . Launcher . | . . Special Weapon . | . . Impact Weapon 1 | . 1 Slashing Weapon . | . . Piercing Weapon . | . . Special Melee Weapon . | . . Unidentified Prototypes . | . . Parts Lost 5 | . 5 Power 2 | . 2 Propulsion 2 | . 2 Utility . | . . Weapon 1 | . 1 Highest Loss Streak 5 | . 5 To Critical Strikes . | . . Average Slot Usage (%) 80 | . 80 Engine 13 | . 13 Treads 25 | . 25 Storage 14 | . 14 Ballistic Gun 17 | . 17 Impact Weapon 8 | . 8 Naked Turns . | . . Heaviest Build 11 | 10 11 Greatest Support 40 | 40 40 Greatest Overweight (x) 3 | . 3 Average Overweight (x) . | . . Largest Inventory Capacity 8 | 8 8 Average Capacity 7 | 7 8 Most Carried 8 | 8 8 Average Carried 6 | 3 7 Final Capacity 8 | 8 8 Final Carried 7 | 6 7 Class Distribution -------------------- 100% | Mutant Dominant Class ---------------- Mutant | -10/Materials Resources | -11 -10 ----------- Run | Yrd Mat Matter Collected 160 | 62 98 Remotely . | . . Salvage Created 211 | . 211 Parts 6 | . 6 Haulers Intercepted . | . . Recyclers Shooed . | . . Parts Field Recycled . | . . Retrieved Matter . | . . Parts Self-Destructed . | . . Prevented . | . . Kills | -11 -10 ------- Run | Yrd Mat Combat Hostiles Destroyed 6 | . 6 Melee 3 | . 3 Classes Destroyed 1 | . 1 Grunt 6 | . 6 Best Kill Streak 2 | . 2 Combat Bots Only 2 | . 2 Max Kills in Single Turn 1 | . 1 Gunslinging . | . . Exploded . | . . Melee 1 | . 1 Uniques/NPCs Destroyed . | . . Combat | -11 -10 -------- Run | Yrd Mat Hostile Shots Fired 92 | . 92 Missed 22 | . 22 Damage Taken 865 | . 865 Core 251 | . 251 Absorbed by Shields . | . . Core Remaining (%) 100 | 100 . Volleys Fired . | . . Largest . | . . Hottest . | . . Shots Fired . | . . Gun . | . . Cannon . | . . Launcher . | . . Special . | . . Kinetic . | . . Thermal . | . . Explosive . | . . Electromagnetic . | . . Robot Hit Streak . | . . Robot Miss Streak . | . . Penetration Max . | . . Secondary Targets . | . . Shots Hit Robots 22 | . 22 Core Hits 2 | . 2 Critical Kills . | . . Critical Parts Destroyed 5 | . 5 Critical Strikes 5 | . 5 Smash 5 | . 5 Melee Attacks 33 | . 33 Impact 33 | . 33 Slashing . | . . Piercing . | . . Sneak Attacks . | . . Combat Hostiles . | . . Follow-up Attacks . | . . Damage Inflicted 524 | . 524 Guns . | . . Cannons . | . . Explosions . | . . Melee 524 | . 524 Ramming . | . . Kinetic . | . . Thermal . | . . Explosive . | . . Electromagnetic . | . . Impact 524 | . 524 Slashing . | . . Piercing . | . . Highest Corruption . | . . Average Corruption . | . . Corruption Purged . | . . Corruption Blocked . | . . Overload Shots . | . . Overflow Damage 165 | . 165 Projectiles . | . . Explosions . | . . Melee 165 | . 165 Knockbacks 2 | . 2 Impact 2 | . 2 Kinetic . | . . Secondary . | . . Self-Inflicted Damage . | . . Shots . | . . Rammed . | . . Targets Rammed . | . . Kicked . | . . Crushed . | . . Highest Temperature . | . . Average Temperature . | . . Received Heat Transfer 483 | . 483 Siege Activations . | . . Robots Corrupted . | . . Combat Hostiles . | . . Parts Fried . | . . Impact Corruptions 8 | . 8 Robots Melted . | . . Combat Hostiles . | . . Parts Melted . | . . Heat Transferred . | . . Parts Sabotaged . | . . Parts Stolen . | . . Parts Stripped . | . . Power Chain Reactions . | . . Alert | -11 -10 ------- Run | Yrd Mat Peak Influence 121 | . 121 Initial . | . . Average 25 | . 30 Maximum Alert Level . | . . Low Security (%) 100 | 100 100 Level 1 . | . . Level 2 . | . . Level 3 . | . . Level 4 . | . . Level 5 . | . . High Security . | . . Max Security . | . . Squads Dispatched 2 | . 2 Investigation 1 | . 1 Extermination . | . . Reinforcement 1 | . 1 Assault . | . . Garrison . | . . Intercept . | . . Searches Triggered . | . . Construction Impeded . | . . Haulers Reinforced . | . . Active Scanning Responses . | . . Cargo Convoy Interrupts . | . . Stealth | -11 -10 --------- Run | Yrd Mat Distress Signals . | . . Communications Jammed . | . . Distress Signals . | . . Times Spotted 11 | . 11 Peak Tracking Total 8 | . 8 Tactical Retreats . | . . Traps | -11 -10 ------- Run | Yrd Mat Traps Triggered . | . . Indirectly . | . . Trap Hack Attempts . | . . Triggered . | . . Disarmed . | . . Reprogrammed . | . . Reused . | . . Traps Extracted . | . . Installed . | . . Triggered . | . . Machines | -11 -10 ---------- Run | Yrd Mat Machines Disabled . | . . Max in Single Turn . | . . Machines Repaired . | . . Machines Dismantled . | . . Machines Sabotaged . | . . Overloaded Fab Kills . | . . Hacking | -11 -10 --------- Run | Yrd Mat Machines Accessed . | . . Terminals . | . . Fabricators . | . . Repair Stations . | . . Recycling Units . | . . Scanalyzers . | . . Garrison Access . | . . Total Hacks . | . . Successful . | . . Failed . | . . Catastrophic . | . . Database Lockouts . | . . Manual . | . . Terminals . | . . Fabricators . | . . Repair Stations . | . . Recycling Units . | . . Scanalyzers . | . . Garrison Access . | . . Terminal Hacks . | . . Fabricator Hacks . | . . Repair Station Hacks . | . . Recycling Unit Hacks . | . . Scanalyzer . | . . Garrison Access Hacks . | . . Unauthorized Hacks . | . . Terminals . | . . Fabricators . | . . Repair Stations . | . . Recycling Units . | . . Scanalyzers . | . . Garrison Access . | . . Data Cores Recovered . | . . Used . | . . Hacking Detections . | . . Full Trace Events . | . . Feedback Events . | . . Feedback Blocked . | . . Robot Schematics Acquired . | . . Robots Built . | . . Authchips . | . . Time . | . . Total Robot Build Rating . | . . Part Schematics Acquired . | . . Parts Built . | . . Authchips . | . . Time . | . . Total Part Build Rating . | . . Parts Repaired . | . . Time . | . . Parts Recycled . | . . Recycled Matter . | . . Retrieved Matter . | . . Retrieved Components . | . . Parts Scanalyzed . | . . Part Schematics Acquired . | . . Parts Damaged . | . . Bothacking | -11 -10 ------------ Run | Yrd Mat Used RIF Installer . | . . Robots Hacked . | . . Non-combat . | . . Combat . | . . Robot Hacks Applied . | . . Relay Couplers Released . | . . Fabnet Peak Effective % . | . . Robots Rewired . | . . Allies Hacked . | . . Hacks Repelled . | . . Allies | -11 -10 -------- Run | Yrd Mat Total Allies . | . . Largest Group . | . . Highest-Rated Group . | . . Highest-Rated Ally . | . . Total Orders . | . . Ally Attacks . | . . Total Damage . | . . Kills . | . . Allies Corrupted . | . . Allies Melted . | . . Intel | -11 -10 ------- Run | Yrd Mat Robot Analysis Total . | . . Derelict Logs Recovered . | . . Drone Launches . | . . Drone Recoveries . | . . Exploration | -11 -10 ------------- Run | Yrd Mat Turns Passed 484 | 77 407 Spaces Moved 226 | 42 184 Core 11 | 6 5 Treads 215 | 36 179 Legs . | . . Wheels . | . . Hover . | . . Flight . | . . Fastest Speed 50 | 50 150 Average Speed 157 | 144 160 Slowest Speed 200 | 160 200 Overloaded Moves . | . . Propulsion Burnouts . | . . Robots Hopped . | . . Cave-ins Triggered . | . . Exploration Rate (%) 24 | 4 44 Regions Visited 1 Branch Regions . Pre-discovered Areas . | . . Known Exits Taken . | . . Unknown Exits Taken 1 | 1 . Scrap Searched . | . . Spaces Dug 1 | . 1 Terrain Destroyed 1 | . 1 Melee 1 | . 1 Projectile . | . . AOE . | . . Terrain Rammed . | . . Walls Destroyed . | . . Machines Disabled . | . . Actions | -11 -10 --------- Run | Yrd Mat Total 300 | 59 241 Wait 18 | . 18 Move 225 | 41 184 Hop . | . . Pick Up 15 | 12 3 Fast Attach . | . . Attach 7 | 6 1 Detach . | . . Swap 1 | . 1 Drop 1 | . 1 Fire . | . . Melee 33 | . 33 Ram . | . . Kick . | . . Crush . | . . Escape Stasis . | . . Rewire . | . . Trap . | . . Miscellaneous . | . . Route ------- -11/Scrapyard -10/Materials (discovered 2 exits: [*Min x2]) History --------- Turn | Location | Event 3 | -11/Scrapyard | Discovered new exit (range 15) 78 | -11/Scrapyard | Entered Materials 122 | -10/Materials | Discovered new exit (range 10) 262 | -10/Materials | Discovered new exit (range 12) 301 | -10/Materials | Build established: Mutant 461 | -10/Materials | Core integrity fell below 50% 475 | -10/Materials | Core integrity fell below 20% 485 | -10/Materials | Destroyed by G-47 Trooper with Particle Gun Last Messages --------------- G-34 Mercenary destroyed. Lgt. Ion Engine destroyed. Destroyed Heat Sink. G-34 Mercenary system corrupted by crushing effect. G-34 Mercenary destroyed. G-47 Trooper suffers critical hit (Smash). Destroyed Lgt. Nuclear Core. G-47 Trooper system corrupted by crushing effect. Lgt. Assault Rifle destroyed. Lgt. Treads destroyed. Purification Channel disabled. Destroyed Imp. Heat Sink. G-47 Trooper system corrupted by crushing effect. G-47 Trooper system terminally corrupted. Lgt. Treads destroyed. Lgt. Ion Engine destroyed. G-34 Mercenary knocked back. Map ----- +----------------------------------------------------+ | ????????????????????????????????????# #??# | | ?????????????????????????????????#### ##?# "" | | ?????????????????????????????????#" #?# "" | | ????????????????????????????# ???#"" #?# "" | | ????????????????????????????# ???#!! #?# "" | | ????????????????????????????# ???#"" < #?# "" | | ????????????????????????????# ???#|| #?# | | ????????????????????????????# #??#"" #?# | | ????????????????????????????# #??#" #?#### | | ?????????????????????###+#### ##?#### ####### | | ?????????????????????? ###### # | | ??????????????????????# + """ | | ????????????????#?????# # """ | | ????????????????# ?????# # """ | | ????????????????# ?????# """ """ # | | ????????????????# ?????# """ """ # """ | | ????????????????# ?????# """ """ # """ | | ?????????????####+###??# + """ | | ?????????????# #??# # | | ?????????????# " #??# """ ##+############ | | ?????????????# """ #??# """ # #???? | | ?????????????# "" #??# """ # #???? | | ?????????????#! """=#### # [ #???? | | ?????????????# " *+%= # #???? | | ?????????????# """!##gg """ ###########???? | | ?????????????# """[##@ """ ""??????????? | | ?????????????# """ ## """ ""??????????? | | ?????????????# " / g ^ ????????? | | ?????????????# ## ????????? | | ?????????????# ### ????????? | | ?????????????# #?# "T" ?????????? | | ?????????????####+###?# """ ?????????? | | ???????????????? ???? !!??????????? | | ???????????????? ???? k !???????????? | | ????????????????#+????##### ####?##???????????? | | ??????????????????????????? ?????????????????? | | ???????????????????????????# #????????????????? | | ????????????????????????????##????????????????? | | ??????????????????????????????????????????????? | | ??????????????????????????????????????????????? | | ??????????????????????????????????????????????? | | ??????????????????????????????????????????????? | | ??????????????????????????????????????????????? | | | | | | | | | | | | | | | +----------------------------------------------------+ Best States ------------- Heat Dissipation 25 Energy Generation 10 Energy Capacity 125 Matter Stores 205 Matter Capacity 300 Sight Range 16 Terrain Scan Density 10 Evasion (%) 40 Recoil Reduction 2 Item Schematics ----------------- None Robot Schematics ------------------ None Fabricated ------------ Nothing Alien Tech Used ----------------- None Achievements -------------- None Challenges ------------ None Game ------ Seed HoverArmorBeamcaster Manual? 0 Play Time 00:05:37 Cumulative 5.0 hours Start 2024.04.01 @ 18:21:42 End 2024.04.01 @ 18:30:06 Sessions 1 Manual Loads 0 Difficulty Rogue Special Mode None Game No. 15 Rogue 15 Adventurer 0 Explorer 0 Win Type - Total 0 Types 0/0/0/0/0/0/0/0/0 Lore% 12 Gallery% 7 Achievement% 7 Wizard Run 0 Options --------- Layout 1 ASCII 0 Keyboard 0 Movement Numpad Keybinds 0 Fullscreen 2 Font 24/Proggy Map View 50x35 Zoom Use 0% Tactical HUD 0 Map Filters NONE Filters NONE Steam 1 RUN: 29abb684-05bb-437c-98a6-095efe54e3f5